Cogmind - Beta 9.4 @@@ ROGUE MODE // 2020.03.12 @ 00:51:25 Player: Nalzok Result: Destroyed by Striker with Plasma Lance Performance ------------- Evolutions (5) 2500 Regions Visited (15) 3000 Robots Destroyed (90) 450 Value Destroyed (2623) 2623 Prototype IDs (33) 660 Alien Tech Used (0) 0 Bonus (2086) 2086 TOTAL SCORE: 11319 Bonus ------- Follower Combat Kills 106 Aligned with FarCom 300 Met Warlord at Base 500 MAIN.C Attacked Warlord 500 Warlord Defense Kill 680 Cogmind --------- Core Integrity 0/1000 Matter 220/300 Energy 64/100 System Corruption 0% Temperature Cool (0) Movement Core (100) Ox1 Location -5/Warlord Parts ------- > --- POWER (1) -------- (None) > --- PROPULSION (4) --- (None) > --- UTILITY (8) ------ Advanced Melee Analysis Suite Improved Core Analyzer Experimental ECM Suite Focal Shield Hacking Suite System Shield Advanced System Shield PSU Rigger > --- WEAPON (4) ------- (None) > --- INVENTORY (4) ---- Micro Fission Core Large Storage Unit Matter Filter Plasma Lance Peak State ------------ > --- POWER ------------ Light Antimatter Reactor > --- PROPULSION ------- Improved Treads Armored Huge Wheel > --- UTILITY ---------- Experimental Heat Sink Large Storage Unit Large Storage Unit High-capacity Storage Unit Improved Utility Shielding Hacking Suite Hacking Suite System Shield > --- WEAPON ----------- Improved Arc Projector Variable Charge Gun KE Penetrator Plasma Lance > --- INVENTORY -------- Micro Fission Core Advanced Melee Analysis Suite Improved Core Analyzer Matter Filter Experimental ECM Suite Improved Propulsion Shielding Improved Medium Armor Plating Improved Medium Armor Plating Improved Medium Armor Plating Reactive Plating Reflective Plating Focal Shield Hacking Suite Advanced System Shield PSU Rigger Advanced Plasma Cannon Neutron Cannon Long-range Missile Launcher Chainsword Power Sword Lance Lance Lance [Rating: 76] Favorites ----------- Power Micro Nuclear Core Engine Cooled Ion Engine Power Core Micro Nuclear Core Reactor Light Antimatter Reactor Propulsion Wheel Treads Improved Treads Leg Makeshift Leg Wheel Wheel Flight Unit Flight Unit Utility Hacking Suite Device Experimental Heat Sink Storage Large Storage Unit Processor Transport Network Coupler Hackware Hacking Suite Protection Improved Utility Shielding Weapon Cooled Pulse Rifle Energy Gun Cooled Pulse Rifle Energy Cannon Neutron Cannon Ballistic Gun Improved Assault Rifle Ballistic Cannon Light Cannon Launcher Rocket Launcher Piercing Weapon Lance Build | -11 -10 -10 -9 -9 -9 -8 -8 -7 -7 -7 -6 -5 -5 -5 -5 ------- Run | Scr Mat Min Mat Min Exi Min Mat Fac Low Low Fac Fac Upp Upp War Slots Evolved 10 | . . . 2 . . . 2 2 . . 2 2 . . . Power . | . . . . . . . . . . . . . . . . Propulsion 2 | . . . . . . . . . . . . 2 . . . Utility 6 | . . . 2 . . . . 2 . . 2 . . . . Weapon 2 | . . . . . . . 2 . . . . . . . . Parts Attached 113 | . 5 . 15 2 1 . 18 17 11 1 7 7 4 3 22 Power 10 | . . . 2 . . . 3 1 1 . . . . . 3 Engine 4 | . . . 2 . . . 1 1 . . . . . . . Core 5 | . . . . . . . 2 . 1 . . . . . 2 Reactor 1 | . . . . . . . . . . . . . . . 1 Propulsion 30 | . 3 . 3 2 . . 6 5 4 . 3 1 2 1 . Treads 3 | . . . . . . . . . . . . . 2 1 . Leg 2 | . . . . . . . . . 2 . . . . . . Wheel 20 | . . . 2 2 . . 5 5 2 . 3 1 . . . Hover . | . . . . . . . . . . . . . . . . Flight 5 | . 3 . 1 . . . 1 . . . . . . . . Utility 30 | . 2 . 5 . 1 . 1 4 1 . 3 4 . . 9 Device 8 | . . . . . . . . . 1 . 1 3 . . 3 Storage 5 | . . . 1 . 1 . 1 1 . . . . . . 1 Processor 4 | . 1 . 1 . . . . . . . . . . . 2 Hackware 5 | . . . 2 . . . . 1 . . 1 . . . 1 Protection 8 | . 1 . 1 . . . . 2 . . 1 1 . . 2 Artifact . | . . . . . . . . . . . . . . . . Weapon 43 | . . . 5 . . . 8 7 5 1 1 2 2 2 10 Energy Gun 14 | . . . . . . . 2 3 3 . . 1 1 1 3 Energy Cannon 3 | . . . . . . . . . . . . 1 . . 2 Ballistic Gun 13 | . . . 3 . . . 5 1 1 . 1 . 1 1 . Ballistic Cannon 5 | . . . 1 . . . 1 2 1 . . . . . . Launcher 5 | . . . 1 . . . . 1 . 1 . . . . 2 Special Weapon . | . . . . . . . . . . . . . . . . Impact Weapon . | . . . . . . . . . . . . . . . . Slashing Weapon . | . . . . . . . . . . . . . . . . Piercing Weapon 3 | . . . . . . . . . . . . . . . 3 Special Melee Weapon . | . . . . . . . . . . . . . . . . Unidentified Prototypes 11 | . . . 3 . . . 4 1 . . . 2 . . 1 Parts Lost 37 | . . 1 2 . . . 3 4 5 3 . 1 1 4 13 Power 3 | . . . . . . . . . 1 . . . . . 2 Propulsion 11 | . . 1 1 . . . 2 2 1 . . . . 2 2 Utility 3 | . . . . . . . . . . 1 . . . . 2 Weapon 20 | . . . 1 . . . 1 2 3 2 . 1 1 2 7 Highest Loss Streak 13 | . . 1 2 . . . 2 3 2 2 . 1 1 3 13 Average Slot Usage (%) 90 | . 76 56 90 100 100 100 96 96 92 90 91 87 89 88 80 Engine 5 | . 14 7 9 11 11 11 8 7 5 . . . . . . Core 1 | . . . . . . . . . 1 7 6 5 5 5 2 Leg 1 | . 9 . . . . . . . 6 15 2 . . . . Wheel 11 | . . . 17 22 22 22 15 13 5 . 10 10 11 6 4 Device 4 | . . . . . . . . . 5 7 11 11 11 11 5 Storage 14 | . 14 14 11 11 16 22 18 15 15 15 13 11 11 11 15 Processor 1 | . . 14 9 . . . . . . . . . . . . Hackware 18 | . . . 10 22 22 22 18 23 23 18 18 17 17 17 16 Protection 4 | . . . 9 11 5 . . 7 1 . 4 5 5 5 4 Energy Gun 6 | . 6 . . . . . 3 2 16 7 6 4 5 14 10 Ballistic Gun 10 | . 12 . 10 11 11 11 29 14 2 7 8 10 5 6 4 Ballistic Cannon 5 | . . . 9 11 11 11 1 10 6 7 6 5 4 . . Naked Turns . | . . . . . . . . . . . . . . . . Heaviest Build 98 | 10 10 7 32 32 46 46 70 80 80 75 80 85 85 80 98 Greatest Support 38 | 20 20 8 26 26 20 20 32 32 37 37 37 38 38 38 28 Greatest Overweight (x) 23 | . 2 . 3 1 2 2 6 7 23 2 7 2 3 3 3 Average Overweight (x) 2 | . . . 1 1 1 2 2 2 2 1 2 1 1 2 2 Largest Inventory Capacity 24 | 6 6 6 10 10 16 16 18 18 18 18 18 18 18 18 24 Average Capacity 16 | 6 6 6 9 10 12 16 17 18 18 18 18 18 18 18 22 Most Carried 24 | 5 5 6 10 10 11 11 18 18 18 18 18 18 18 18 24 Average Carried 15 | 4 2 5 9 9 10 11 17 17 17 17 16 17 17 17 22 Final Capacity 18 | 6 6 6 10 10 16 16 18 18 18 18 18 18 18 18 4 Final Carried 18 | 2 5 6 9 10 11 11 18 18 18 17 18 18 18 18 4 Class Distribution -------------------- 29% | Hacker-Mutant 25% | Hacker-Skirmisher 23% | Hacker-Tank 12% | Mutant 8% | Hacker-Gunner Dominant Class ---------------- Mutant | -10/Materials Mutant | -10/Mines Mutant | -9/Materials Hacker-Mutant | -9/Mines Hacker-Mutant | -9/Exiles Hacker-Mutant | -8/Mines Hacker-Skirmisher | -8/Materials Hacker-Skirmisher | -7/Factory Hacker-Mutant | -7/Lower Caves Hacker-Gunner | -7/Lower Caves Hacker-Skirmisher | -6/Factory Hacker-Skirmisher | -5/Factory Hacker-Mutant | -5/Upper Caves Hacker-Tank | -5/Upper Caves Hacker-Tank | -5/Warlord Resources | -11 -10 -10 -9 -9 -9 -8 -8 -7 -7 -7 -6 -5 -5 -5 -5 ----------- Run | Scr Mat Min Mat Min Exi Min Mat Fac Low Low Fac Fac Upp Upp War Matter Collected 2897 | 200 67 10 381 54 . 39 712 366 411 97 26 184 92 73 185 Remotely . | . . . . . . . . . . . . . . . . Salvage Created 3475 | . 89 . 684 55 . . 1099 382 258 232 26 254 63 171 162 Parts 184 | . 6 . 40 9 . . 59 21 13 10 4 8 3 4 7 Haulers Intercepted 7 | . 1 . 4 . . . 2 . . . . . . . . Recyclers Shooed 3 | . . . 3 . . . . . . . . . . . . Parts Field Recycled . | . . . . . . . . . . . . . . . . Retrieved Matter . | . . . . . . . . . . . . . . . . Parts Self-Destructed 100 | . . . . . . . . . 13 10 . . 2 4 71 Prevented 20 | . . . . . . . . . . . . . 2 3 15 Kills | -11 -10 -10 -9 -9 -9 -8 -8 -7 -7 -7 -6 -5 -5 -5 -5 ------- Run | Scr Mat Min Mat Min Exi Min Mat Fac Low Low Fac Fac Upp Upp War Combat Hostiles Destroyed 58 | . 3 . 7 2 . . 16 6 8 6 . 1 1 3 5 Guns 39 | . 3 . 2 2 . . 14 2 4 5 . 1 1 3 2 Cannons 12 | . . . 5 . . . . 2 4 . . . . . 1 AOE 7 | . . . . . . . 2 2 . 1 . . . . 2 Classes Destroyed 15 | . 2 . 4 1 . . 2 . 1 1 . 1 . . 3 Worker 5 | . . . . . . . 4 1 . . . . . . . Builder 6 | . . . . . . . 1 4 . . 1 . . . . Tunneler 2 | . . . . 1 . . 1 . . . . . . . . Hauler 7 | . 1 . 4 . . . 2 . . . . . . . . Recycler 7 | . . . 2 . . . 2 2 . . . 1 . . . Operator 1 | . . . . . . . . . . . . 1 . . . Watcher 4 | . . . 2 . . . 1 . . . . 1 . . . Swarmer 21 | . 3 . . 2 . . 4 4 3 3 . . . 1 1 Grunt 20 | . . . 3 . . . 10 . 4 2 . . . 1 . Brawler 1 | . . . . . . . . . . 1 . . . . . Sentry 11 | . . . 4 . . . 2 2 . . . 1 1 1 . Demolisher 2 | . . . . . . . . . . . . . . . 2 Hunter 1 | . . . . . . . . . . . . . . . 1 Programmer 1 | . . . . . . . . . 1 . . . . . . Striker 1 | . . . . . . . . . . . . . . . 1 Best Kill Streak 8 | . 3 . 2 3 . . 8 5 3 3 1 2 1 2 3 Combat Bots Only 5 | . 3 . 2 2 . . 5 5 3 3 . 1 1 2 3 Max Kills in Single Turn 2 | . 1 . 2 1 . . 2 2 2 2 1 1 1 1 2 Gunslinging 1 | . . . . . . . 1 . . . . . . . . Exploded 2 | . . . . . . . 1 2 . 1 . . . . 2 Melee . | . . . . . . . . . . . . . . . . Uniques/NPCs Destroyed . | . . . . . . . . . . . . . . . . Combat | -11 -10 -10 -9 -9 -9 -8 -8 -7 -7 -7 -6 -5 -5 -5 -5 -------- Run | Scr Mat Min Mat Min Exi Min Mat Fac Low Low Fac Fac Upp Upp War Damage Taken 6907 | . 54 170 223 16 . . 1132 792 738 186 . 351 520 365 2360 Core 1616 | . 19 78 76 . . . 157 158 66 14 . 101 64 74 809 Absorbed by Shields 115 | . . . . . . . . . . . . . . . 115 Core Remaining (%) 79 | 100 . 61 . . . 81 71 . . 66 100 . . . . Volleys Fired 236 | . 9 . 43 5 . . 53 39 29 8 2 14 5 11 18 Largest 4 | . 2 . 2 2 . . 4 4 4 4 3 4 4 4 4 Hottest 254 | . 60 . 58 58 . . 125 132 229 188 98 166 245 190 254 Shots Fired 622 | . 13 . 82 10 . . 197 80 80 27 6 50 16 30 31 Gun 461 | . 13 . 47 5 . . 193 23 55 17 4 37 11 30 26 Cannon 153 | . . . 35 5 . . 4 54 25 8 2 13 5 . 2 Launcher 8 | . . . . . . . . 3 . 2 . . . . 3 Special . | . . . . . . . . . . . . . . . . Kinetic 468 | . 9 . 82 10 . . 174 63 32 16 4 36 9 18 15 Thermal 99 | . 4 . . . . . . 14 48 9 2 14 1 . 7 Explosive 8 | . . . . . . . . 3 . 2 . . . . 3 Electromagnetic 47 | . . . . . . . 23 . . . . . 6 12 6 Robot Hit Streak 20 | . 4 . 20 2 . . 11 9 8 7 2 13 11 5 7 Robot Miss Streak 5 | . 1 . 4 2 . . 4 5 4 2 2 4 2 2 3 Penetration Max 1 | . . . . . . . . . 1 . . . . . . Secondary Targets 4 | . . . 1 . . . 3 . . . . . . . . Max Gunslinging Chain 2 | . . . 1 . . . 2 . . . . . . . . Shots Hit Robots 338 | . 8 . 49 3 . . 119 26 44 12 2 27 12 18 18 Core Hits 149 | . 5 . 19 3 . . 45 19 15 8 1 8 2 9 15 Critical Hits 6 | . . . 1 . . . . . 4 1 . . . . . Critical Kills 1 | . . . . . . . . . . 1 . . . . . Critical Parts Destroyed 5 | . . . 1 . . . . . 4 . . . . . . Melee Attacks . | . . . . . . . . . . . . . . . . Impact . | . . . . . . . . . . . . . . . . Slashing . | . . . . . . . . . . . . . . . . Piercing . | . . . . . . . . . . . . . . . . Sneak Attacks . | . . . . . . . . . . . . . . . . Combat Hostiles . | . . . . . . . . . . . . . . . . Follow-up Attacks . | . . . . . . . . . . . . . . . . Damage Inflicted 7245 | . 82 . 713 44 . . 1760 984 1299 448 20 762 266 278 589 Guns 4993 | . 82 . 426 44 . . 1461 398 870 321 20 615 159 278 319 Cannons 1484 | . . . 287 . . . 16 422 429 53 . 147 57 . 73 Explosions 768 | . . . . . . . 283 164 . 74 . . 50 . 197 Melee . | . . . . . . . . . . . . . . . . Ramming . | . . . . . . . . . . . . . . . . Kinetic 4004 | . 59 . 713 44 . . 1105 496 524 148 . 420 152 143 200 Thermal 2010 | . 23 . . . . . 125 324 775 226 20 342 50 . 125 Explosive 593 | . . . . . . . 158 164 . 74 . . . . 197 Electromagnetic 638 | . . . . . . . 372 . . . . . 64 135 67 Impact . | . . . . . . . . . . . . . . . . Slashing . | . . . . . . . . . . . . . . . . Piercing . | . . . . . . . . . . . . . . . . Highest Corruption 8 | . . . . . . . . 1 1 8 . . . . . Average Corruption 1 | . . . . . . . . 1 1 4 . . . . . Corruption Purged . | . . . . . . . . . . . . . . . . Effects 12 | . . . . . . . . 1 9 2 . . . . . Message Errors 4 | . . . . . . . . . 3 1 . . . . . Energy Discharges 4 | . . . . . . . . 1 3 . . . . . . Data Loss (minor) 2 | . . . . . . . . . 2 . . . . . . Data Loss (major) 1 | . . . . . . . . . . 1 . . . . . Targeting Errors 1 | . . . . . . . . . 1 . . . . . . Overload Shots 46 | . . . . . . . . 7 19 8 . 12 . . . Effects 3 | . . . . . . . . . . . . 3 . . . Energy Bleed 2 | . . . . . . . . . . . . 2 . . . Heat Surge 1 | . . . . . . . . . . . . 1 . . . Overflow Damage 72 | . . . 7 . . . . 11 . . . 25 . . 29 Projectiles 63 | . . . 7 . . . . 2 . . . 25 . . 29 Explosions 9 | . . . . . . . . 9 . . . . . . . Melee . | . . . . . . . . . . . . . . . . Knockbacks 18 | . . . 3 . . . . 5 10 . . . . . . Impact . | . . . . . . . . . . . . . . . . Kinetic 17 | . . . 3 . . . . 5 9 . . . . . . Secondary 1 | . . . . . . . . . 1 . . . . . . Self-Inflicted Damage 219 | . . . . . . . 152 67 . . . . . . . Shots 4 | . . . . . . . 2 2 . . . . . . . Rammed . | . . . . . . . . . . . . . . . . Targets Rammed . | . . . . . . . . . . . . . . . . Kicked . | . . . . . . . . . . . . . . . . Crushed . | . . . . . . . . . . . . . . . . Highest Temperature 441 | . . . 5 . . . 427 146 441 96 . 193 75 54 84 Average Temperature 108 | . . . 1 . . . 160 40 134 40 . 82 42 26 45 Received Heat Transfer 1161 | . . . 90 . . . 414 120 297 27 . 45 . 75 93 Effects 6 | . . . . . . . 3 . 3 . . . . . . Shutdowns 2 | . . . . . . . 1 . 1 . . . . . . Interference 1 | . . . . . . . 1 . . . . . . . . Matter Decay 1 | . . . . . . . . . 1 . . . . . . Short Circuit 2 | . . . . . . . 1 . 1 . . . . . . Siege Activations . | . . . . . . . . . . . . . . . . Robots Corrupted . | . . . . . . . . . . . . . . . . Combat Hostiles . | . . . . . . . . . . . . . . . . Parts Fried 1 | . . . . . . . . . . . . . . 1 . Impact Corruptions . | . . . . . . . . . . . . . . . . Robots Melted . | . . . . . . . . . . . . . . . . Combat Hostiles . | . . . . . . . . . . . . . . . . Parts Melted 2 | . . . . . . . . 2 . . . . . . . Heat Transferred 2813 | . 50 . . . . . 100 461 1216 300 37 450 50 . 149 Parts Sabotaged 3 | . . . . . . . . . . . . . . . 3 Parts Stolen 1 | . . . . . . . . . 1 . . . . . . Parts Stripped . | . . . . . . . . . . . . . . . . Power Chain Reactions 3 | . . . . . . . 2 . . . . . 1 . . Missiles Intercepted . | . . . . . . . . . . . . . . . . Alert | -11 -10 -10 -9 -9 -9 -8 -8 -7 -7 -7 -6 -5 -5 -5 -5 ------- Run | Scr Mat Min Mat Min Exi Min Mat Fac Low Low Fac Fac Upp Upp War Peak Influence 520 | . 77 50 203 55 . . 238 239 . . 520 296 . . . Average Influence 95 | . 52 41 63 8 . . 85 84 . . 236 229 . . . Maximum Alert Level 2 | . . . 1 . . . 1 1 . . 2 1 . . . Low Security (%) 86 | 100 100 100 99 100 . 100 89 98 . . 69 27 . . . Level 1 11 | . . . . . . . 10 1 . . . 72 . . . Level 2 1 | . . . . . . . . . . . 30 . . . . Level 3 . | . . . . . . . . . . . . . . . . Level 4 . | . . . . . . . . . . . . . . . . Level 5 . | . . . . . . . . . . . . . . . . High Security . | . . . . . . . . . . . . . . . . Max Security . | . . . . . . . . . . . . . . . . Squads Dispatched 8 | . 1 . 1 . . . 3 2 . . . 1 . . . Investigation 4 | . 1 . . . . . 2 1 . . . . . . . Extermination 1 | . . . . . . . . 1 . . . . . . . Reinforcement 3 | . . . 1 . . . 1 . . . . 1 . . . Assault . | . . . . . . . . . . . . . . . . Garrison . | . . . . . . . . . . . . . . . . Intercept . | . . . . . . . . . . . . . . . . Construction Impeded 1 | . . . . . . . 1 . . . . . . . . Haulers Reinforced . | . . . . . . . . . . . . . . . . Stealth | -11 -10 -10 -9 -9 -9 -8 -8 -7 -7 -7 -6 -5 -5 -5 -5 --------- Run | Scr Mat Min Mat Min Exi Min Mat Fac Low Low Fac Fac Upp Upp War Distress Signals 1 | . . . . . . . . . . . . 1 . . . Communications Jammed . | . . . . . . . . . . . . . . . . Distress Signals . | . . . . . . . . . . . . . . . . Times Spotted 112 | . 4 12 12 2 . . 20 8 12 6 . 6 3 5 22 Peak Tracking Total 10 | . 3 9 2 1 . . 6 6 4 3 . 2 2 3 10 Tactical Retreats 8 | . . 2 . . . . 2 . 1 . . 1 . 1 1 Traps | -11 -10 -10 -9 -9 -9 -8 -8 -7 -7 -7 -6 -5 -5 -5 -5 ------- Run | Scr Mat Min Mat Min Exi Min Mat Fac Low Low Fac Fac Upp Upp War Traps Triggered 5 | . 1 . . . . . 2 2 . . . . . . . Indirectly . | . . . . . . . . . . . . . . . . Trap Hack Attempts . | . . . . . . . . . . . . . . . . Triggered . | . . . . . . . . . . . . . . . . Disarmed 6 | . . . . . . . . 6 . . . . . . . Reprogrammed . | . . . . . . . . . . . . . . . . Reused . | . . . . . . . . . . . . . . . . Traps Extracted . | . . . . . . . . . . . . . . . . Installed . | . . . . . . . . . . . . . . . . Triggered 11 | . . . . . . . . . . . . . 1 2 8 Exploded 1 | . . . . . 1 . . . . . . . . . . Machines | -11 -10 -10 -9 -9 -9 -8 -8 -7 -7 -7 -6 -5 -5 -5 -5 ---------- Run | Scr Mat Min Mat Min Exi Min Mat Fac Low Low Fac Fac Upp Upp War Machines Disabled 9 | . . . 1 . . . 3 4 . . . 1 . . . Max in Single Turn 1 | . . . 1 . . . 1 1 . . . 1 . . . Machines Sabotaged . | . . . . . . . . . . . . . . . . Garrisons Compromised . | . . . . . . . . . . . . . . . . Overloaded Fab Kills . | . . . . . . . . . . . . . . . . Fab Network Shutdowns 1 | . . . . . . . . . . . 1 . . . . Hacking | -11 -10 -10 -9 -9 -9 -8 -8 -7 -7 -7 -6 -5 -5 -5 -5 --------- Run | Scr Mat Min Mat Min Exi Min Mat Fac Low Low Fac Fac Upp Upp War Machines Accessed 34 | . 2 . 8 1 2 . 4 4 1 . 3 5 . . 4 Terminals 22 | . 2 . 8 1 . . 4 3 . . . 4 . . . Fabricators 3 | . . . . . . . . . . . 2 1 . . . Repair Stations . | . . . . . . . . . . . . . . . . Recycling Units 1 | . . . . . . . . . . . 1 . . . . Scanalyzers 1 | . . . . . . . . 1 . . . . . . . Garrison Access . | . . . . . . . . . . . . . . . . Total Hacks 83 | . 2 . 19 1 5 . 13 14 1 . 5 13 . . 10 Successful 53 | . 1 . 6 1 5 . 8 9 1 . 3 9 . . 10 Failed 30 | . 1 . 13 . . . 5 5 . . 2 4 . . . Catastrophic 3 | . . . 1 . . . . 2 . . . . . . . Database Lockouts . | . . . . . . . . . . . . . . . . Manual 47 | . . . 12 1 1 . 13 6 . . 2 9 . . 3 Terminals 55 | . 2 . 19 1 . . 13 8 . . . 12 . . . Fabricators 5 | . . . . . . . . . . . 4 1 . . . Repair Stations . | . . . . . . . . . . . . . . . . Recycling Units 1 | . . . . . . . . . . . 1 . . . . Scanalyzers 6 | . . . . . . . . 6 . . . . . . . Garrison Access . | . . . . . . . . . . . . . . . . Terminal Hacks 28 | . 1 . 3 1 5 . 2 2 1 . . 3 . . 10 Record 14 | . . . . . 4 . . . . . . 1 . . 9 Open Door 2 | . . . . . . . . . 1 . . . . . 1 Level Access Points 2 | . . . . 1 . . 1 . . . . . . . . Branch Access Points 2 | . 1 . 1 . . . . . . . . . . . . Emergency Access Points 2 | . . . 1 . . . . . . . . 1 . . . Terminal Index 1 | . . . . . . . . . . . . 1 . . . Unreport Threat 2 | . . . 1 . . . 1 . . . . . . . . Disarm Traps 1 | . . . . . . . . 1 . . . . . . . Maintenance Status 1 | . . . . . . . . 1 . . . . . . . EX-Prototype ID Bank 1 | . . . . . 1 . . . . . . . . . . Fabricator Hacks 3 | . . . . . . . . . . . 2 1 . . . Build 3 | . . . . . . . . . . . 2 1 . . . Repair Station Hacks . | . . . . . . . . . . . . . . . . Recycling Unit Hacks 1 | . . . . . . . . . . . 1 . . . . Report Inventory 1 | . . . . . . . . . . . 1 . . . . Scanalyzer 4 | . . . . . . . . 4 . . . . . . . Insert Component 2 | . . . . . . . . 2 . . . . . . . Analyze 2 | . . . . . . . . 2 . . . . . . . Garrison Access Hacks . | . . . . . . . . . . . . . . . . Unauthorized Hacks 47 | . . . 10 . . . 16 6 . . 2 13 . . . Terminals 17 | . . . 3 . . . 6 3 . . . 5 . . . Track 3 | . . . . . . . 2 . . . . 1 . . . Assimilate 2 | . . . 2 . . . . . . . . . . . . Botnet 8 | . . . . . . . 2 3 . . . 3 . . . Detonate 1 | . . . . . . . 1 . . . . . . . . Operators 3 | . . . 1 . . . 1 . . . . 1 . . . Fabricators . | . . . . . . . . . . . . . . . . Repair Stations . | . . . . . . . . . . . . . . . . Recycling Units . | . . . . . . . . . . . . . . . . Scanalyzers . | . . . . . . . . . . . . . . . . Garrison Access . | . . . . . . . . . . . . . . . . Data Cores Recovered . | . . . . . . . . . . . . . . . . Used . | . . . . . . . . . . . . . . . . Hacking Detections 19 | . 1 . 5 . . . 3 4 . . 2 4 . . . Full Trace Events 1 | . . . . . . . . 1 . . . . . . . Feedback Events . | . . . . . . . . . . . . . . . . Feedback Blocked . | . . . . . . . . . . . . . . . . Robot Schematics Acquired . | . . . . . . . . . . . . . . . . Robots Built . | . . . . . . . . . . . . . . . . Matter . | . . . . . . . . . . . . . . . . Time . | . . . . . . . . . . . . . . . . Total Robot Build Rating . | . . . . . . . . . . . . . . . . Part Schematics Acquired 2 | . . . . . . . . 2 . . . . . . . Parts Built 2 | . . . . . . . . . . . 1 1 . . . Matter 563 | . . . . . . . . . . . 351 212 . . . Time 115 | . . . . . . . . . . . 62 53 . . . Total Part Build Rating 13 | . . . . . . . . . . . 7 6 . . . Parts Repaired . | . . . . . . . . . . . . . . . . Time . | . . . . . . . . . . . . . . . . Parts Recycled . | . . . . . . . . . . . . . . . . Recycled Matter . | . . . . . . . . . . . . . . . . Retrieved Matter . | . . . . . . . . . . . . . . . . Retrieved Components . | . . . . . . . . . . . . . . . . Parts Scanalyzed 2 | . . . . . . . . 2 . . . . . . . Part Schematics Acquired 2 | . . . . . . . . 2 . . . . . . . Parts Damaged . | . . . . . . . . . . . . . . . . Bothacking | -11 -10 -10 -9 -9 -9 -8 -8 -7 -7 -7 -6 -5 -5 -5 -5 ------------ Run | Scr Mat Min Mat Min Exi Min Mat Fac Low Low Fac Fac Upp Upp War Used RIF Installer . | . . . . . . . . . . . . . . . . Robots Hacked . | . . . . . . . . . . . . . . . . Non-combat . | . . . . . . . . . . . . . . . . Combat . | . . . . . . . . . . . . . . . . Robot Hacks Applied . | . . . . . . . . . . . . . . . . Relay Couplers Released . | . . . . . . . . . . . . . . . . Robots Rewired 4 | . . . . . . . . . . . . . . . 4 Allies Hacked . | . . . . . . . . . . . . . . . . Hacks Repelled . | . . . . . . . . . . . . . . . . Allies | -11 -10 -10 -9 -9 -9 -8 -8 -7 -7 -7 -6 -5 -5 -5 -5 -------- Run | Scr Mat Min Mat Min Exi Min Mat Fac Low Low Fac Fac Upp Upp War Total Allies 4 | . . . . . . . . . . . . . . . 4 Largest Group 4 | . . . . . . . . . . . . . . . 4 Highest-Rated Group 183 | . . . . . . . . . . . . . . . 183 Highest-Rated Ally 60 | . . . . . . . . . . . . . . . 60 Total Orders 8 | . . . . . . . . . . . . 7 1 . . GOTO 3 | . . . . . . . . . . . . 3 . . . FOLLOW 2 | . . . . . . . . . . . . 2 . . . EXPLORE 3 | . . . . . . . . . . . . 2 1 . . Ally Attacks 18 | . . . . . . . . . . . . . . . 18 Total Damage 911 | . . . . . . . . . . . . . . . 911 Kills 2 | . . . . . . . . . . . . . . . 2 Allies Corrupted 1 | . . . . . . . . . . . . 1 . . . Allies Melted . | . . . . . . . . . . . . . . . . Intel | -11 -10 -10 -9 -9 -9 -8 -8 -7 -7 -7 -6 -5 -5 -5 -5 ------- Run | Scr Mat Min Mat Min Exi Min Mat Fac Low Low Fac Fac Upp Upp War Robot Analysis Total . | . . . . . . . . . . . . . . . . Derelict Logs Recovered 6 | . . 1 . 2 . . . . 2 . . . 1 . . Drone Launches 2 | . . . . . . . . . . . . 2 . . . Drone Recoveries . | . . . . . . . . . . . . . . . . Exploration | -11 -10 -10 -9 -9 -9 -8 -8 -7 -7 -7 -6 -5 -5 -5 -5 ------------- Run | Scr Mat Min Mat Min Exi Min Mat Fac Low Low Fac Fac Upp Upp War Turns Passed 8355 | 2 189 80 921 484 246 148 1007 812 1586 93 290 555 358 532 1052 Spaces Moved 5461 | 1 145 190 634 463 258 149 437 577 746 38 176 305 246 385 711 Core 57 | . . . . . . . . . 38 . . . . . 19 Treads 29 | . . . . . . . . . . . . . 1 28 . Legs 488 | 1 39 . . . . . . . 387 38 23 . . . . Wheels 4570 | . . . 613 463 258 149 437 577 321 . 153 305 245 357 692 Hover . | . . . . . . . . . . . . . . . . Flight 317 | . 106 190 21 . . . . . . . . . . . . Fastest Speed 37 | 120 37 37 40 90 90 100 100 110 110 165 110 100 100 110 100 Average Speed 120 | 120 103 38 96 99 94 100 116 114 195 174 117 110 110 124 127 Slowest Speed 1200 | 120 210 40 120 100 100 100 140 150 1200 195 165 120 220 220 130 Overloaded Moves . | . . . . . . . . . . . . . . . . Propulsion Burnouts . | . . . . . . . . . . . . . . . . Robots Hopped 6 | . 1 5 . . . . . . . . . . . . . Cave-ins Triggered . | . . . . . . . . . . . . . . . . Exploration Rate (%) 40 | 2 21 25 40 88 63 39 25 17 77 5 6 20 82 52 85 Regions Visited 15 Branch Regions 9 Pre-discovered Areas 1 | . . . . . 1 . . . . . . . . . . Known Exits Taken 6 | . 1 . 1 . . 1 1 . 1 . 1 . . . . Unknown Exits Taken 9 | 1 . 1 . 1 1 . . 1 . 1 . 1 1 1 . Scrap Searched 12 | . . 1 . 1 . 1 . . 6 . . . 2 1 . Spaces Dug 6 | . . . . . . . . 4 1 . . 1 . . . Terrain Destroyed 153 | . . . . . . . 39 22 12 31 1 4 13 . 31 Melee . | . . . . . . . . . . . . . . . . Projectile 49 | . . . . . . . . 9 12 11 1 4 3 . 9 AOE 104 | . . . . . . . 39 13 . 20 . . 10 . 22 Actions | -11 -10 -10 -9 -9 -9 -8 -8 -7 -7 -7 -6 -5 -5 -5 -5 --------- Run | Scr Mat Min Mat Min Exi Min Mat Fac Low Low Fac Fac Upp Upp War Total 6791 | 4 171 192 864 479 259 148 845 665 815 46 255 489 320 414 825 Wait 791 | . 3 5 150 7 . . 312 1 16 . 64 154 63 13 3 Move 5435 | . 142 180 633 462 257 148 436 576 745 37 175 304 245 384 711 Hop 5 | . 1 4 . . . . . . . . . . . . . Pick Up 65 | . 2 1 12 1 1 . 11 14 6 . 3 4 1 1 8 Fast Attach 46 | . 4 . 9 . . . 9 4 5 . 3 3 3 2 4 Attach 25 | . . . 3 . . . 1 3 3 1 4 1 . . 9 Detach 12 | . 4 1 1 . . . 1 . 1 . 2 . . . 2 Swap 42 | . 1 . 3 2 1 . 8 10 3 . . 3 1 1 9 Drop 77 | 4 5 1 10 2 . . 14 18 7 . 2 5 2 2 5 Fire 236 | . 9 . 43 5 . . 53 39 29 8 2 14 5 11 18 Melee . | . . . . . . . . . . . . . . . . Ram . | . . . . . . . . . . . . . . . . Kick . | . . . . . . . . . . . . . . . . Crush . | . . . . . . . . . . . . . . . . Escape Stasis . | . . . . . . . . . . . . . . . . Rewire 56 | . . . . . . . . . . . . . . . 56 Trap . | . . . . . . . . . . . . . . . . Miscellaneous 1 | . . . . . . . . . . . . 1 . . . Route ------- -11/Scrapyard -10/Materials (discovered 2 exits: *Min x2) -10/Mines -9/Materials (discovered 2 exits: *Min x2) -9/Mines (discovered 3 exits: *Mat x2 / *Exi) -9/Exiles -8/Mines -8/Materials (discovered 4 exits: *Fac x3 / Sto) -7/Factory -7/Lower Caves -7/Lower Caves -6/Factory -5/Factory (discovered 2 exits: [*Upp x2]) -5/Upper Caves -5/Upper Caves (discovered 2 exits: [*Fac] / *War) -5/Warlord History --------- Turn | Location | Event 3 | -11/Scrapyard | Discovered new exit (range 0) 3 | -11/Scrapyard | Entered Materials 20 | -10/Materials | Identified exit to Mines 192 | -10/Materials | Entered Mines 193 | -10/Mines | Assembled infested the area 206 | -10/Mines | Learned Materials interactive machine intel 256 | -10/Mines | Discovered new exit (range 6) 272 | -10/Mines | Entered Materials 272 | -9/Materials | Evolved 2 slots: Utility x2 273 | -9/Materials | Loaded intel: 18 interactive machine locations 311 | -9/Materials | Build established: Mutant 1153 | -9/Materials | Discovered new exit (range 8) 1176 | -9/Materials | Identified exit to Mines 1193 | -9/Materials | Entered Mines 1219 | -9/Mines | Met a Derelict bent on vengeance 1284 | -9/Mines | Received a Rocket Launcher from a helpful Derelict 1368 | -9/Mines | Build established: Hacker-Mutant 1378 | -9/Mines | Identified exit to Materials 1391 | -9/Mines | Learned Materials emergency access door positions 1619 | -9/Mines | Learned 8 Materials zone layouts 1674 | -9/Mines | Deemed a non-threat by the Exiles lab entrance 1674 | -9/Mines | Discovered new exit (range 5) 1677 | -9/Mines | Entered Exiles 1700 | -9/Exiles | Met 8R-AWN 1714 | -9/Exiles | Met EX-HEX 1744 | -9/Exiles | Met EX-BIN 1758 | -9/Exiles | Aligned with FarCom system 1759 | -9/Exiles | Given EX-Vault access code 1789 | -9/Exiles | Opened EX-Vault 1805 | -9/Exiles | Found PSU Rigger 1827 | -9/Exiles | Warned to stay clear of 0b10 Research branches 1831 | -9/Exiles | Exiles lab attacked by MAIN.C 1870 | -9/Exiles | Learned location of Zion (-7) 1908 | -9/Exiles | Discovered new exit (range 14) 1923 | -9/Exiles | Left Exiles lab with PSU Rigger 1923 | -9/Exiles | Entered Mines 2056 | -8/Mines | Discovered exit to Materials (range 14) 2071 | -8/Mines | Entered Materials 2071 | -8/Materials | Evolved 2 slots: Weapon x2 2072 | -8/Materials | Identified exit to Factory 2072 | -8/Materials | Identified exit to Storage 2426 | -8/Materials | Build established: Hacker-Skirmisher 3078 | -8/Materials | Entered Factory 3078 | -7/Factory | Evolved 2 slots: Utility x2 3758 | -7/Factory | Lost 3 parts (1n2w) 3863 | -7/Factory | Discovered new exit (range 8) 3890 | -7/Factory | Entered Lower Caves 3926 | -7/Lower Caves | Com. Wheel stolen by Master Thief 4166 | -7/Lower Caves | Spotted B-75 Beast 4181 | -7/Lower Caves | Build established: Hacker-Tank 4563 | -7/Lower Caves | Build established: Hacker-Mutant 5085 | -7/Lower Caves | Learned 8 Factory zone layouts 5189 | -7/Lower Caves | Build established: Hacker-Gunner 5225 | -7/Lower Caves | Encountered a Warlord checkpoint 5300 | -7/Lower Caves | Identified exit to Lower Caves 5476 | -7/Lower Caves | Entered another Lower Caves area 5559 | -7/Lower Caves | Discovered new exit (range 2) 5569 | -7/Lower Caves | Entered Factory 5569 | -6/Factory | Evolved 2 slots: Utility x2 5570 | -6/Factory | Identified exit to Factory 5695 | -6/Factory | Fabricated Exp. ECM Suite (x1) 5771 | -6/Factory | Local fabrication network quarantined 5859 | -6/Factory | Entered another Factory area 5859 | -5/Factory | Evolved 2 slots: Propulsion x2 5877 | -5/Factory | Build established: Hacker-Skirmisher 5956 | -5/Factory | Fabricated Adv. Drone Bay (x1) 6199 | -5/Factory | Discovered new exit (range 128) 6325 | -5/Factory | Discovered new exit (range 32) 6414 | -5/Factory | Entered Upper Caves 6414 | -5/Upper Caves | Accompanied by 1 ally 6636 | -5/Upper Caves | Attracted the attention of an 0b10 checkpoint 6729 | -5/Upper Caves | Discovered new exit (range 11) 6759 | -5/Upper Caves | Learned Factory stockpile data 6772 | -5/Upper Caves | Entered another Upper Caves area 6802 | -5/Upper Caves | Discovered new exit (range 10) 6903 | -5/Upper Caves | Attracted the attention of an 0b10 checkpoint 6979 | -5/Upper Caves | Lost 3 parts (2n1w) 7102 | -5/Upper Caves | Discovered new exit (range 15) 7112 | -5/Upper Caves | Encountered a Warlord checkpoint 7250 | -5/Upper Caves | Spotted B-75 Beast 7265 | -5/Upper Caves | Build established: Hacker-Tank 7304 | -5/Upper Caves | Entered Warlord 7667 | -5/Warlord | Received a Watcher feed algorithm from an ecstatic Tinkerer 7776 | -5/Warlord | Warlord's base attacked by MAIN.C 8020 | -5/Warlord | Met Warlord 8126 | -5/Warlord | Warlord forces counterattacked 8236 | -5/Warlord | Spotted Striker 8241 | -5/Warlord | Destroyed Striker 8291 | -5/Warlord | Core integrity fell below 50% 8315 | -5/Warlord | Spotted Striker 8336 | -5/Warlord | Core integrity fell below 20% 8354 | -5/Warlord | Lost 13 parts (2p2n2u7w) 8356 | -5/Warlord | Spotted Executioner 8356 | -5/Warlord | Destroyed by Striker with Plasma Lance Last Messages --------------- 08319_ Adv. Plasma Cannon blown off. 08319_ E-15 Imp destroyed. 08319_ Exp. Heat Sink blown off. 08319_ E-15 Imp destroyed. 08320_ Acquired Hvy. Beamcaster. 08321_ Hvy. Beamcaster destroyed. 08322_ Acquired 59 matter. 08323_ The unstable cave ceiling collapses. 08323_ Arm. Huge Wheel destroyed. 08325_ Segregator fries itself beyond repair. 08325_ The unstable cave ceiling collapses. 08326_ Propulsion Shielding fries itself beyond repair. 08326_ The unstable cave ceiling collapses. 08335_ Imp. Propulsion Shielding crushed. 08335_ The unstable cave ceiling collapses. 08336_ Lrg. Storage Unit crushed. 08336_ Dropped Reactive Plating. 08337_ The unstable cave ceiling collapses. 08337_ Dropped Imp. Medium Armor Plating. 08338_ The unstable cave ceiling collapses. Map ----- +----------------------------------------------------+ | | | | | | | | | | | | | | | | | ?????????????????????????????????????????????? | | ?????????????????????????????????????????????? | | ?????????????????????????????????????????????? | | ?????????????????????????????????????????????? | | ###########??????????????????????????????????? | | #?????????????????????????????????? | | #?????????????????????????????????? | | ##+#########?????????????????????????????????? | | #?????????????????????????????????????????? | | #?????????????????????????????????????????? | | #?????????????????????????????????????????? | | #???????????????????####??????????????????? | | #??????????????????## ##?????????????????? | | #?????????????????## #?????????????????? | | #?????????????????# #?????????????????? | | #+##?????????????????# ##?????????????????? | | #?######??????????# #?????????????????? | | #? #??????????# K@ ##????????????????? | | # #??????????## #????????????????? | | # #???????????### ##???????????????? | | + #?????????????#;*=%#???????????????? | | ########?????????????##;![###????? #?????? | | #?????????????????????##%=#"### #?????? | | #??????????????????????#[b * % #???? | | #??????????????????????## ###%* ##???????? | | #??????"??????????????##"# = =???????????? | | #?????#""???????##?#### ####%[ =#?????????? | | #?????#""######## ## # ##??? %=%#????????? | | #?????#""### #???#? =#????????? | | #?????#"" ## ## ### #?#E !%#?????##? | | #######"" # ## # ## # # ## ==##??? #? | | "" # ##/# %# #?"%%=##? #?? | | # "" !/[!= # #???]% # #??? | | % "" !/!! ######= #???? | | [ /!= "=!%!= #???? | | % % = % !!%=!#???????? | | [ == % ! !*%##???????? | | = = %%* * ]"#????????? | | # = "" [ ## !#???? #??? | | # "" % #### #???? ??? | | # "" ###""##??# ##???? ??? | | #######"" ## #?###??## #????? ??? | +----------------------------------------------------+ Best States ------------- Heat Dissipation 66 Energy Generation 21 Energy Capacity 315 Matter Stores 300 Matter Capacity 300 Sight Range 16 Terrain Scan Density 10 Armor Coverage 225 Resistance: KI 20 Propulsion Shielding 66 Utility Shielding 66 Evasion (%) 62 Melee Accuracy 8 Core Analysis 8 Recoil Reduction 1 Matter Filtering 30 Offensive Hacking 20 Defensive Hacking 24 Item Schematics ----------------- Hacking Suite | -7/Factory | Scanalyzed Chainsword | -7/Factory | Scanalyzed Robot Schematics ------------------ None Fabricated ------------ Exp. ECM Suite | x1 | -6/Factory | Preloaded Adv. Drone Bay | x1 | -5/Factory | Preloaded Alien Tech Used ----------------- None Achievements -------------- None Challenges ------------ None Game ------ Seed AssaultMeleeImmobilizer Manual? 0 Play Time 01:30:20 Cumulative 220.5 hours Start 2020.03.11 @ 22:53:00 End 2020.03.12 @ 00:51:25 Sessions 1 Manual Loads 0 Difficulty Rogue Special Mode None Game No. 349 Rogue 348 Adventurer 0 Explorer 1 Win Type - Total 1 Types 1/0/0/0/0/0/0 Lore% 62 Gallery% 77 Achievement% 50 Wizard Run 0 Options --------- ASCII 0 Keyboard 0 Movement Vi Keybinds 0 Fullscreen 1 Font 14/Cog Map View 72x52 Tactical HUD 1 Map Filters NONE Filters LOW_CONTRAST(13,24,33) Steam 0 RUN: de5aafeb-f708-4484-b7a4-ff6583d035b5